[Event "Live Chess"]
[Site "Chess.com"]
[Date "2023.05.20"]
[Round "-"]
[White "Vladyslav2008"]
[Black "Tushinskiy"]
[Result "0-1"]
[WhiteElo "2163"]
[BlackElo "2115"]
[TimeControl "300"]
[EndTime "11:39:14 PDT"]
[Termination "Tushinskiy won by resignation"]

1. d4 {[%clk 0:04:55.6]} 1... d5 {[%clk 0:04:58.6]} 2. c4 {[%clk 0:04:54.5]}
2... c6 {[%clk 0:04:58.5]} 3. Nf3 {[%clk 0:04:53.2]} 3... e6 {[%clk 0:04:46.6]}
4. e3 {[%clk 0:04:51.8]} 4... Nf6 {[%clk 0:04:45.2]} 5. Nbd2 {[%clk 0:04:49.1]}
5... Bd6 {[%clk 0:04:42.5]} 6. Bd3 {[%clk 0:04:47.4]} 6... Qe7 {[%clk
0:04:37.3]} 7. O-O {[%clk 0:04:40.5]} 7... Nbd7 {[%clk 0:04:21.7]} 8. e4 {[%clk
0:04:39]} 8... dxe4 {[%clk 0:04:19.4]} 9. Nxe4 {[%clk 0:04:37.4]} 9... Nxe4
{[%clk 0:04:19.3]} 10. Bxe4 {[%clk 0:04:35.6]} 10... Nf6 {[%clk 0:04:15.1]} 11.
Bc2 {[%clk 0:04:34.2]} 11... b6 {[%clk 0:04:13.6]} 12. Ne5 {[%clk 0:04:25.8]}
12... Bb7 {[%clk 0:04:12.4]} 13. Re1 {[%clk 0:04:18.7]} 13... O-O-O {[%clk
0:04:10.1]} 14. a4 {[%clk 0:04:15.6]} 14... c5 {[%clk 0:04:08.2]} 15. d5 {[%clk
0:04:03.2]} 15... Qc7 {[%clk 0:04:04.9]} 16. Bf4 {[%clk 0:03:51]} 16... exd5
{[%clk 0:04:02.4]} 17. a5 {[%clk 0:03:45]} 17... dxc4 {[%clk 0:03:55]} 18. axb6
{[%clk 0:03:43.1]} 18... axb6 {[%clk 0:03:54.9]} 19. Bf5+ {[%clk 0:03:38.6]}
19... Kb8 {[%clk 0:03:53.1]} 20. Qa4 {[%clk 0:03:37.2]} 20... Bd5 {[%clk
0:03:37.8]} 21. Red1 {[%clk 0:02:23.3]} 21... Qb7 {[%clk 0:03:26.1]} 22. f3
{[%clk 0:02:16.2]} 22... Rhe8 {[%clk 0:03:23.9]} 23. Rxd5 {[%clk 0:01:47.5]}
23... Nxd5 {[%clk 0:03:12.9]} 24. Nc6+ {[%clk 0:01:29.1]} 24... Kc7 {[%clk
0:03:11.2]} 25. Nxd8 {[%clk 0:01:28.1]} 25... Rxd8 {[%clk 0:03:08.1]} 26. Bxd6+
{[%clk 0:01:19.2]} 26... Kxd6 {[%clk 0:03:05.5]} 27. Qxc4 {[%clk 0:01:16.9]}
27... b5 {[%clk 0:02:51.7]} 28. Qh4 {[%clk 0:01:11.3]} 28... Re8 {[%clk
0:02:32.2]} 29. Rd1 {[%clk 0:01:04.8]} 29... Qe7 {[%clk 0:02:22.8]} 30. Qe4
{[%clk 0:00:28.7]} 30... Qe5 {[%clk 0:01:53.4]} 31. Rxd5+ {[%clk 0:00:26.5]}
31... Qxd5 {[%clk 0:01:52.2]} 32. Qxe8 {[%clk 0:00:25.4]} 32... Qxf5 {[%clk
0:01:51.3]} 33. Qb8+ {[%clk 0:00:21.1]} 33... Kd5 {[%clk 0:01:47.9]} 34. Qxb5
{[%clk 0:00:19.2]} 34... Qb1+ {[%clk 0:01:40]} 35. Kf2 {[%clk 0:00:18.8]} 35...
Qc2+ {[%clk 0:01:39.3]} 36. Kg3 {[%clk 0:00:18.2]} 36... Qg6+ {[%clk 0:01:36]}
37. Kf2 {[%clk 0:00:17]} 37... Kd4 {[%clk 0:01:28.9]} 38. Qd7+ {[%clk
0:00:15.3]} 38... Kc4 {[%clk 0:01:26]} 39. Qd1 {[%clk 0:00:13.7]} 39... Kb4
{[%clk 0:01:20.7]} 40. Qd2+ {[%clk 0:00:12.9]} 40... Kb5 {[%clk 0:01:19.7]} 41.
Qe2+ {[%clk 0:00:11.9]} 41... Kb6 {[%clk 0:01:14.9]} 42. Qc4 {[%clk 0:00:11.5]}
42... Qd6 {[%clk 0:01:12.3]} 43. b4 {[%clk 0:00:10.7]} 43... cxb4 {[%clk
0:01:10.6]} 44. Qc8 {[%clk 0:00:09.8]} 44... Qc5+ {[%clk 0:01:09.2]} 45. Qxc5+
{[%clk 0:00:09.3]} 45... Kxc5 {[%clk 0:01:09.1]} 46. Ke2 {[%clk 0:00:09]} 46...
Kc4 {[%clk 0:01:07.9]} 47. Kd2 {[%clk 0:00:08.7]} 47... Kb3 {[%clk 0:01:07.2]}
48. Kc1 {[%clk 0:00:07.7]} 48... Ka2 {[%clk 0:01:06.6]} 49. Kd2 {[%clk
0:00:07.4]} 49... b3 {[%clk 0:01:06.5]} 0-1

[Event "Live Chess"]
[Site "Chess.com"]
[Date "2023.05.20"]
[Round "-"]
[White "siddu198"]
[Black "thrithik"]
[Result "1-0"]
[WhiteElo "1626"]
[BlackElo "465"]
[TimeControl "300"]
[EndTime "11:39:14 PDT"]
[Termination "siddu198 won by checkmate"]

1. e4 {[%clk 0:04:57.3]} 1... a5 {[%clk 0:04:58.2]} 2. a4 {[%clk 0:04:52.8]}
2... c6 {[%clk 0:04:52.1]} 3. h4 {[%clk 0:04:52.7]} 3... b5 {[%clk 0:04:48.3]}
4. d4 {[%clk 0:04:52.6]} 4... Na6 {[%clk 0:04:43.9]} 5. g4 {[%clk 0:04:52.5]}
5... Nb4 {[%clk 0:04:42.2]} 6. Bd2 {[%clk 0:04:50.8]} 6... Na6 {[%clk
0:04:35.4]} 7. f4 {[%clk 0:04:49.7]} 7... d6 {[%clk 0:04:32.6]} 8. f5 {[%clk
0:04:49.6]} 8... c5 {[%clk 0:04:29.8]} 9. Be3 {[%clk 0:04:47.7]} 9... cxd4
{[%clk 0:04:28.1]} 10. Bxd4 {[%clk 0:04:47.6]} 10... Nc7 {[%clk 0:04:22.3]} 11.
Bxb5+ {[%clk 0:04:45.4]} 11... Nxb5 {[%clk 0:04:20.4]} 12. axb5 {[%clk
0:04:45.3]} 12... Qd7 {[%clk 0:04:16.8]} 13. Qd3 {[%clk 0:04:43.6]} 13... Qxb5
{[%clk 0:04:16.3]} 14. Qxb5+ {[%clk 0:04:43.5]} 14... Bd7 {[%clk 0:04:10.9]} 15.
Qb7 {[%clk 0:04:41.8]} 15... Rd8 {[%clk 0:04:05.5]} 16. Bb6 {[%clk 0:04:39.1]}
16... Rc8 {[%clk 0:04:02.1]} 17. Rxa5 {[%clk 0:04:37.3]} 17... Bc6 {[%clk
0:03:55.9]} 18. Qxc8# {[%clk 0:04:34.4]} 1-0

[Event "Live Chess"]
[Site "Chess.com"]
[Date "2023.05.20"]
[Round "-"]
[White "alanmike75"]
[Black "AyannaTang"]
[Result "1-0"]
[WhiteElo "1516"]
[BlackElo "176"]
[TimeControl "300"]
[EndTime "11:39:21 PDT"]
[Termination "alanmike75 won by checkmate"]

1. e4 {[%clk 0:04:59.1]} 1... e5 {[%clk 0:04:56.7]} 2. Nf3 {[%clk 0:04:57.9]}
2... Qe7 {[%clk 0:04:52]} 3. Bc4 {[%clk 0:04:52.5]} 3... d5 {[%clk 0:04:48.1]}
4. Bxd5 {[%clk 0:04:50.5]} 4... Be6 {[%clk 0:04:43.2]} 5. Bxe6 {[%clk
0:04:48.8]} 5... Qxe6 {[%clk 0:04:41.1]} 6. O-O {[%clk 0:04:47.6]} 6... Nc6
{[%clk 0:04:31.6]} 7. d4 {[%clk 0:04:42.6]} 7... exd4 {[%clk 0:04:27.4]} 8. Nxd4
{[%clk 0:04:41]} 8... Nxd4 {[%clk 0:04:25.9]} 9. Qxd4 {[%clk 0:04:39.7]} 9...
Rd8 {[%clk 0:04:11.1]} 10. Qxa7 {[%clk 0:04:34.7]} 10... Qxe4 {[%clk 0:04:04.7]}
11. Nc3 {[%clk 0:04:32.8]} 11... Qe7 {[%clk 0:03:58.8]} 12. Bf4 {[%clk
0:04:28.5]} 12... Qf6 {[%clk 0:03:47.8]} 13. Bxc7 {[%clk 0:04:21.8]} 13... Rc8
{[%clk 0:03:44.6]} 14. Bg3 {[%clk 0:04:14.3]} 14... Nh6 {[%clk 0:03:32.3]} 15.
Qa4+ {[%clk 0:04:10.9]} 15... Rc6 {[%clk 0:03:28]} 16. Ne4 {[%clk 0:04:02.7]}
16... Qxb2 {[%clk 0:03:16.5]} 17. Rab1 {[%clk 0:03:54.5]} 17... Qxc2 {[%clk
0:03:13.7]} 18. Qxc2 {[%clk 0:03:50.1]} 18... Rxc2 {[%clk 0:03:08.6]} 19. Rxb7
{[%clk 0:03:43.7]} 19... Rxa2 {[%clk 0:03:06.3]} 20. Rc1 {[%clk 0:03:39.7]}
20... Ra8 {[%clk 0:02:58.3]} 21. h3 {[%clk 0:03:31.3]} 21... Ba3 {[%clk
0:02:42.4]} 22. Rcc7 {[%clk 0:03:28.3]} 22... Bd6 {[%clk 0:02:35.2]} 23. Nxd6+
{[%clk 0:03:24.1]} 23... Kd8 {[%clk 0:02:33.2]} 24. Nxf7+ {[%clk 0:03:22]} 24...
Nxf7 {[%clk 0:02:29.9]} 25. Rxf7 {[%clk 0:03:20.5]} 25... Ra1+ {[%clk
0:02:24.8]} 26. Kh2 {[%clk 0:03:19.1]} 26... Ra8 {[%clk 0:02:20.4]} 27. Rxg7
{[%clk 0:03:17.2]} 27... Kc8 {[%clk 0:02:09]} 28. Rgc7+ {[%clk 0:03:13.1]} 28...
Kd8 {[%clk 0:02:05.7]} 29. Bh4+ {[%clk 0:03:11.8]} 29... Ke8 {[%clk 0:02:03.9]}
30. Rxh7 {[%clk 0:03:07.1]} 30... Rxh7 {[%clk 0:02:01.8]} 31. Rxh7 {[%clk
0:03:05.3]} 31... Kf8 {[%clk 0:01:54.6]} 32. Rh8+ {[%clk 0:03:03.5]} 32... Kf7
{[%clk 0:01:48.8]} 33. Rxa8 {[%clk 0:03:01.7]} 33... Kg6 {[%clk 0:01:44.3]} 34.
Ra5 {[%clk 0:02:59.6]} 34... Kh6 {[%clk 0:01:41.8]} 35. Kg3 {[%clk 0:02:58.1]}
35... Kg6 {[%clk 0:01:40.2]} 36. Kg4 {[%clk 0:02:57.2]} 36... Kh6 {[%clk
0:01:37.6]} 37. Ra6+ {[%clk 0:02:53.8]} 37... Kg7 {[%clk 0:01:34.9]} 38. Kf5
{[%clk 0:02:52.9]} 38... Kf7 {[%clk 0:01:33.3]} 39. Ra7+ {[%clk 0:02:51.2]}
39... Ke8 {[%clk 0:01:31.2]} 40. Kf6 {[%clk 0:02:45.1]} 40... Kd8 {[%clk
0:01:28.7]} 41. Ke6+ {[%clk 0:02:41.6]} 41... Kc8 {[%clk 0:01:25.8]} 42. Kd6
{[%clk 0:02:39.6]} 42... Kb8 {[%clk 0:01:23.3]} 43. Rh7 {[%clk 0:02:37.9]} 43...
Kc8 {[%clk 0:01:16.5]} 44. f4 {[%clk 0:02:35.4]} 44... Kb8 {[%clk 0:01:10.7]}
45. Kc6 {[%clk 0:02:33.8]} 45... Ka8 {[%clk 0:01:05.8]} 46. Kb6 {[%clk
0:02:32.1]} 46... Kb8 {[%clk 0:01:03.1]} 47. Rh8# {[%clk 0:02:30.8]} 1-0

[Event "Live Chess"]
[Site "Chess.com"]
[Date "2023.05.20"]
[Round "-"]
[White "ReceptiveCamel"]
[Black "zdanevych"]
[Result "0-1"]
[WhiteElo "626"]
[BlackElo "1526"]
[TimeControl "300"]
[EndTime "11:39:21 PDT"]
[Termination "zdanevych won by checkmate"]

1. e4 {[%clk 0:04:57.3]} 1... d5 {[%clk 0:04:58.5]} 2. Qg4 {[%clk 0:04:44.7]}
2... Bxg4 {[%clk 0:04:56.3]} 3. f3 {[%clk 0:04:32.4]} 3... Bh5 {[%clk
0:04:49.3]} 4. exd5 {[%clk 0:04:31.2]} 4... Qxd5 {[%clk 0:04:47.9]} 5. g4 {[%clk
0:04:25.8]} 5... Bxg4 {[%clk 0:04:44]} 6. Bg2 {[%clk 0:04:22.1]} 6... Bxf3
{[%clk 0:04:35.5]} 7. Bxf3 {[%clk 0:04:19.9]} 7... Qb5 {[%clk 0:04:33.5]} 8. Nc3
{[%clk 0:04:14.6]} 8... Qd7 {[%clk 0:04:22.3]} 9. Bxb7 {[%clk 0:04:11.4]} 9...
Nc6 {[%clk 0:04:13]} 10. Bxa8 {[%clk 0:04:09.9]} 10... Nf6 {[%clk 0:04:08.5]}
11. Bxc6 {[%clk 0:04:07.4]} 11... Qxc6 {[%clk 0:04:07.4]} 12. d3 {[%clk
0:04:06.5]} 12... Qxh1 {[%clk 0:04:05.9]} 13. Be3 {[%clk 0:04:03.8]} 13... Ng4
{[%clk 0:04:03.1]} 14. Bxa7 {[%clk 0:03:59.1]} 14... e6 {[%clk 0:03:54.6]} 15.
O-O-O {[%clk 0:03:57.6]} 15... Bb4 {[%clk 0:03:51.5]} 16. Nh3 {[%clk 0:03:54.1]}
16... Qb7 {[%clk 0:03:49.1]} 17. Bd4 {[%clk 0:03:49.5]} 17... O-O {[%clk
0:03:46.5]} 18. Rg1 {[%clk 0:03:45.8]} 18... Nh6 {[%clk 0:03:39.7]} 19. Bxg7
{[%clk 0:03:42.8]} 19... Bxc3 {[%clk 0:03:33.1]} 20. Bxh6+ {[%clk 0:03:41.5]}
20... Kh8 {[%clk 0:03:31.5]} 21. Bxf8 {[%clk 0:03:40]} 21... Qxb2+ {[%clk
0:03:27.8]} 22. Kd1 {[%clk 0:03:38.7]} 22... Qb1+ {[%clk 0:03:25.8]} 23. Ke2
{[%clk 0:03:37.7]} 23... Qxc2+ {[%clk 0:03:24.9]} 24. Kf3 {[%clk 0:03:35.5]}
24... Qxd3+ {[%clk 0:03:23.9]} 25. Kg4 {[%clk 0:03:31.5]} 25... Qf5+ {[%clk
0:03:19.8]} 26. Kh4 {[%clk 0:03:29.1]} 26... Bf6+ {[%clk 0:03:17.9]} 27. Kg3
{[%clk 0:03:27.5]} 27... Qd3+ {[%clk 0:03:07.3]} 28. Kf2 {[%clk 0:03:24.6]}
28... Qxh3 {[%clk 0:03:02.5]} 29. Rb1 {[%clk 0:03:08.1]} 29... Qxh2+ {[%clk
0:02:58.5]} 30. Ke3 {[%clk 0:03:06.2]} 30... Qg3+ {[%clk 0:02:56.4]} 31. Ke4
{[%clk 0:03:04.7]} 31... Qg4+ {[%clk 0:02:53.3]} 32. Ke3 {[%clk 0:03:03.8]}
32... Bg5+ {[%clk 0:02:51.2]} 33. Kf2 {[%clk 0:03:01]} 33... Bh4+ {[%clk
0:02:44.6]} 34. Ke3 {[%clk 0:02:58.8]} 34... Qg3+ {[%clk 0:02:37.1]} 35. Kd4
{[%clk 0:02:56.4]} 35... Qf2+ {[%clk 0:02:32.9]} 36. Kc3 {[%clk 0:02:52.5]}
36... Bf6+ {[%clk 0:02:27.4]} 37. Kd3 {[%clk 0:02:50.8]} 37... Qf5+ {[%clk
0:02:25.5]} 38. Kd2 {[%clk 0:02:48.7]} 38... Qxb1 {[%clk 0:02:25.4]} 39. Ke3
{[%clk 0:02:47.6]} 39... Qxa2 {[%clk 0:02:24.1]} 40. Kf3 {[%clk 0:02:47.1]}
40... Qb3+ {[%clk 0:02:20.4]} 41. Ke4 {[%clk 0:02:45.8]} 41... Qd5+ {[%clk
0:02:17.5]} 42. Ke3 {[%clk 0:02:44.1]} 42... c5 {[%clk 0:02:15.2]} 43. Kf4
{[%clk 0:02:43.7]} 43... c4 {[%clk 0:02:13.6]} 44. Bb4 {[%clk 0:02:40]} 44... c3
{[%clk 0:02:12.5]} 45. Bxc3 {[%clk 0:02:38.8]} 45... Bxc3 {[%clk 0:02:11]} 46.
Kg4 {[%clk 0:02:37.9]} 46... Qf5+ {[%clk 0:02:08.9]} 47. Kg3 {[%clk 0:02:36.6]}
47... e5 {[%clk 0:02:08.2]} 48. Kg2 {[%clk 0:02:34.3]} 48... e4 {[%clk
0:02:08.1]} 49. Kg3 {[%clk 0:02:33.2]} 49... e3 {[%clk 0:02:08]} 50. Kg2 {[%clk
0:02:32.4]} 50... e2 {[%clk 0:02:07.9]} 51. Kh2 {[%clk 0:02:29.2]} 51... e1=Q
{[%clk 0:02:07.8]} 52. Kg2 {[%clk 0:02:28.1]} 52... Qe2+ {[%clk 0:02:04.1]} 53.
Kg3 {[%clk 0:02:26.3]} 53... Qff3+ {[%clk 0:02:03.5]} 54. Kh4 {[%clk 0:02:25]}
54... Qee4+ {[%clk 0:02:02.8]} 55. Kg5 {[%clk 0:02:23.8]} 55... Qeg4+ {[%clk
0:02:01.2]} 56. Kh6 {[%clk 0:02:22.9]} 56... Qfh3# {[%clk 0:02:01.1]} 0-1

[Event "Live Chess"]
[Site "Chess.com"]
[Date "2023.05.20"]
[Round "-"]
[White "chessleanstrategist"]
[Black "Leonid_Starozhilov"]
[Result "0-1"]
[WhiteElo "400"]
[BlackElo "2653"]
[TimeControl "300"]
[EndTime "11:39:24 PDT"]
[Termination "Leonid_Starozhilov won by resignation"]

1. c4 {[%clk 0:04:58.9]} 1... Nf6 {[%clk 0:04:58.6]} 2. Nc3 {[%clk 0:04:57.2]}
2... g6 {[%clk 0:04:57.5]} 3. g3 {[%clk 0:04:56.1]} 3... Bg7 {[%clk 0:04:57]} 4.
Nf3 {[%clk 0:04:55]} 4... O-O {[%clk 0:04:56.9]} 5. Bg2 {[%clk 0:04:53.9]} 5...
d6 {[%clk 0:04:56.8]} 6. O-O {[%clk 0:04:52.7]} 6... e5 {[%clk 0:04:55.9]} 7. e3
{[%clk 0:04:38.3]} 7... c6 {[%clk 0:04:50.2]} 8. d4 {[%clk 0:04:33.7]} 8... e4
{[%clk 0:04:46.7]} 9. Nd2 {[%clk 0:04:26.4]} 9... d5 {[%clk 0:04:45]} 10. c5
{[%clk 0:04:24.2]} 10... Bg4 {[%clk 0:04:41.8]} 11. Qc2 {[%clk 0:04:15.7]} 11...
Qd7 {[%clk 0:04:38]} 12. b4 {[%clk 0:04:12.6]} 12... Bh3 {[%clk 0:04:34.9]} 13.
a4 {[%clk 0:03:48.7]} 13... h5 {[%clk 0:04:29.4]} 14. f3 {[%clk 0:03:33.4]}
14... exf3 {[%clk 0:04:21.4]} 15. Rxf3 {[%clk 0:03:19.2]} 15... Bxg2 {[%clk
0:04:18.5]} 16. Kxg2 {[%clk 0:03:15.6]} 16... Na6 {[%clk 0:04:16.7]} 17. Ba3
{[%clk 0:03:11.1]} 17... Nc7 {[%clk 0:04:15.4]} 18. Raf1 {[%clk 0:03:09.9]}
18... Nh7 {[%clk 0:04:13]} 19. Nb3 {[%clk 0:02:54]} 19... Rae8 {[%clk
0:04:04.8]} 20. Qf2 {[%clk 0:02:51.2]} 20... Ng5 {[%clk 0:04:00.2]} 21. Rf4
{[%clk 0:02:38.3]} 21... Nh3 {[%clk 0:03:57.4]} 22. Qf3 {[%clk 0:02:25.2]} 22...
Nxf4+ {[%clk 0:03:53.4]} 23. Qxf4 {[%clk 0:02:24.5]} 23... Ne6 {[%clk
0:03:49.7]} 24. Qf2 {[%clk 0:02:16.6]} 24... Ng5 {[%clk 0:03:45.2]} 25. b5
{[%clk 0:02:04.9]} 25... Qh3+ {[%clk 0:03:41.5]} 26. Kh1 {[%clk 0:02:01]} 26...
Rxe3 {[%clk 0:03:39.1]} 27. Re1 {[%clk 0:01:33.3]} 27... Rxe1+ {[%clk
0:03:27.7]} 28. Qxe1 {[%clk 0:01:32]} 28... Nf3 {[%clk 0:03:23.4]} 29. Qf2
{[%clk 0:01:25]} 29... Re8 {[%clk 0:03:07]} 30. Ne2 {[%clk 0:01:06.9]} 30...
Qxh2+ {[%clk 0:02:31.4]} 31. Qxh2 {[%clk 0:00:57.9]} 31... Nxh2 {[%clk
0:02:31.3]} 32. Kxh2 {[%clk 0:00:57.1]} 32... Rxe2+ {[%clk 0:02:29.9]} 33. Kg1
{[%clk 0:00:55.4]} 33... Re3 {[%clk 0:02:29]} 34. Kf2 {[%clk 0:00:54]} 34...
Rxb3 {[%clk 0:02:27.7]} 35. Bc1 {[%clk 0:00:44.8]} 35... Bxd4+ {[%clk 0:02:24]}
36. Ke2 {[%clk 0:00:34.1]} 36... Bxc5 {[%clk 0:02:20.1]} 37. Kd1 {[%clk
0:00:23.3]} 37... Rb1 {[%clk 0:02:15.5]} 38. Kc2 {[%clk 0:00:20.9]} 38... Rxc1+
{[%clk 0:02:14.8]} 39. Kxc1 {[%clk 0:00:19.3]} 39... Bf2 {[%clk 0:02:14.4]} 40.
Kd1 {[%clk 0:00:16.7]} 40... Bxg3 {[%clk 0:02:11.7]} 41. Ke2 {[%clk 0:00:15.7]}
41... Bd6 {[%clk 0:02:10.1]} 0-1

[Event "Live Chess"]
[Site "Chess.com"]
[Date "2023.05.20"]
[Round "-"]
[White "TDCMF"]
[Black "minenko-1958"]
[Result "0-1"]
[WhiteElo "362"]
[BlackElo "1424"]
[TimeControl "300"]
[EndTime "11:39:24 PDT"]
[Termination "minenko-1958 won by checkmate"]

1. e4 {[%clk 0:04:58.9]} 1... e5 {[%clk 0:04:58.7]} 2. Nf3 {[%clk 0:04:57.3]}
2... Nc6 {[%clk 0:04:55.9]} 3. Bc4 {[%clk 0:04:56.2]} 3... Bc5 {[%clk
0:04:49.2]} 4. Ng5 {[%clk 0:04:54.7]} 4... Qxg5 {[%clk 0:04:46.6]} 5. Qf3 {[%clk
0:04:52.6]} 5... Qf6 {[%clk 0:04:44.1]} 6. Qxf6 {[%clk 0:04:48.7]} 6... Nxf6
{[%clk 0:04:41.5]} 7. Nc3 {[%clk 0:04:46.6]} 7... a6 {[%clk 0:04:39.2]} 8. h3
{[%clk 0:04:45.4]} 8... b5 {[%clk 0:04:37.4]} 9. Bb3 {[%clk 0:04:43.3]} 9... Nd4
{[%clk 0:04:34.6]} 10. O-O {[%clk 0:04:30.7]} 10... c6 {[%clk 0:04:33.1]} 11.
Bxf7+ {[%clk 0:04:02.9]} 11... Kxf7 {[%clk 0:04:31.1]} 12. a4 {[%clk 0:03:57.5]}
12... b4 {[%clk 0:04:27.8]} 13. Na2 {[%clk 0:03:46.8]} 13... Nxe4 {[%clk
0:04:26.2]} 14. c3 {[%clk 0:03:44.8]} 14... Nb3 {[%clk 0:04:21.7]} 15. Rb1
{[%clk 0:03:40.6]} 15... bxc3 {[%clk 0:04:17.3]} 16. bxc3 {[%clk 0:03:39.2]}
16... Nbxd2 {[%clk 0:04:16]} 17. Bxd2 {[%clk 0:03:37.9]} 17... Nxd2 {[%clk
0:04:14.8]} 18. Rbe1 {[%clk 0:03:27.3]} 18... Nxf1 {[%clk 0:04:13.1]} 19. Rxf1
{[%clk 0:03:26.1]} 19... d6 {[%clk 0:04:12]} 20. Nc1 {[%clk 0:03:18]} 20... Be6
{[%clk 0:04:08.8]} 21. Ne2 {[%clk 0:03:05.9]} 21... Bc4 {[%clk 0:04:06.6]} 22.
Ng3 {[%clk 0:03:02]} 22... Bxf1 {[%clk 0:04:04.8]} 23. Nxf1 {[%clk 0:03:01.4]}
23... Rhf8 {[%clk 0:04:02.7]} 24. Ng3 {[%clk 0:03:00.4]} 24... Ke6 {[%clk
0:04:01.4]} 25. Nh5 {[%clk 0:02:59]} 25... Bxf2+ {[%clk 0:03:56.6]} 26. Kh2
{[%clk 0:02:54.5]} 26... Rf7 {[%clk 0:03:55.2]} 27. g3 {[%clk 0:02:47.9]} 27...
g6 {[%clk 0:03:53.6]} 28. Nf4+ {[%clk 0:02:41.5]} 28... exf4 {[%clk 0:03:51.9]}
29. gxf4 {[%clk 0:02:40.7]} 29... Rxf4 {[%clk 0:03:50.3]} 30. Kg2 {[%clk
0:02:39]} 30... Bb6 {[%clk 0:03:47.9]} 31. Kg3 {[%clk 0:02:37.9]} 31... Kf5
{[%clk 0:03:46.4]} 32. h4 {[%clk 0:02:36.3]} 32... h5 {[%clk 0:03:43.5]} 33. c4
{[%clk 0:02:33.9]} 33... Rxc4 {[%clk 0:03:41.6]} 34. a5 {[%clk 0:02:30.4]} 34...
Bxa5 {[%clk 0:03:39.8]} 35. Kf3 {[%clk 0:02:29.7]} 35... Rc3+ {[%clk 0:03:37.9]}
36. Kf2 {[%clk 0:02:28.9]} 36... Kf4 {[%clk 0:03:37]} 37. Ke2 {[%clk 0:02:27.9]}
37... Rc2+ {[%clk 0:03:34.7]} 38. Kd1 {[%clk 0:02:27.2]} 38... Ra2 {[%clk
0:03:32.9]} 39. Kc1 {[%clk 0:02:26.3]} 39... Ke3 {[%clk 0:03:31]} 40. Kb1 {[%clk
0:02:25.3]} 40... Rg2 {[%clk 0:03:28.3]} 41. Kc1 {[%clk 0:02:24.6]} 41... Kd3
{[%clk 0:03:26.9]} 42. Kd1 {[%clk 0:02:23.8]} 42... Rg1# {[%clk 0:03:25.5]} 0-1

[Event "Live Chess"]
[Site "Chess.com"]
[Date "2023.05.20"]
[Round "-"]
[White "BillythekidFellowes"]
[Black "smoggyrabbit"]
[Result "1-0"]
[WhiteElo "2015"]
[BlackElo "1619"]
[TimeControl "300"]
[EndTime "11:39:30 PDT"]
[Termination "BillythekidFellowes won on time"]

1. e4 {[%clk 0:04:59.3]} 1... e6 {[%clk 0:04:58.8]} 2. Nf3 {[%clk 0:04:59.2]}
2... d5 {[%clk 0:04:57.7]} 3. e5 {[%clk 0:04:59.1]} 3... c5 {[%clk 0:04:56.5]}
4. b4 {[%clk 0:04:59]} 4... b6 {[%clk 0:04:54.6]} 5. bxc5 {[%clk 0:04:57]} 5...
bxc5 {[%clk 0:04:53]} 6. d4 {[%clk 0:04:56.9]} 6... Qd7 {[%clk 0:04:38.4]} 7.
Na3 {[%clk 0:04:53.9]} 7... Ba6 {[%clk 0:04:36.7]} 8. Bxa6 {[%clk 0:04:50.3]}
8... Nxa6 {[%clk 0:04:35.9]} 9. O-O {[%clk 0:04:50.2]} 9... Qa4 {[%clk
0:04:28.4]} 10. c4 {[%clk 0:04:46]} 10... Qxd1 {[%clk 0:03:59.1]} 11. Rxd1
{[%clk 0:04:45.9]} 11... cxd4 {[%clk 0:03:51]} 12. Nxd4 {[%clk 0:04:33.1]} 12...
Ne7 {[%clk 0:03:11.2]} 13. Nab5 {[%clk 0:04:28.5]} 13... Ng6 {[%clk 0:03:01.7]}
14. f4 {[%clk 0:04:24.1]} 14... Bc5 {[%clk 0:02:56.3]} 15. Kf1 {[%clk
0:04:19.1]} 15... O-O {[%clk 0:02:49.8]} 16. g3 {[%clk 0:04:10.4]} 16... dxc4
{[%clk 0:02:47.8]} 17. Be3 {[%clk 0:04:07.5]} 17... Bxd4 {[%clk 0:02:37.5]} 18.
Rxd4 {[%clk 0:03:57]} 18... Rac8 {[%clk 0:02:23]} 19. Nxa7 {[%clk 0:03:52.4]}
19... Rc7 {[%clk 0:02:15.4]} 20. Nb5 {[%clk 0:03:51.1]} 20... Rb7 {[%clk
0:02:12.6]} 21. Nd6 {[%clk 0:03:49.3]} 21... Rc7 {[%clk 0:02:02]} 22. Rxc4
{[%clk 0:03:44.9]} 22... Rxc4 {[%clk 0:02:00.9]} 23. Nxc4 {[%clk 0:03:44.8]}
23... Rc8 {[%clk 0:01:59.4]} 24. Nd6 {[%clk 0:03:39.9]} 24... Rc3 {[%clk
0:01:56.3]} 25. Ke2 {[%clk 0:03:33.4]} 25... Nb4 {[%clk 0:01:43.6]} 26. Rb1
{[%clk 0:03:29.1]} 26... Nxa2 {[%clk 0:01:13.6]} 27. Rb8+ {[%clk 0:03:26]} 27...
Nf8 {[%clk 0:01:12.6]} 28. Ne4 {[%clk 0:03:24.6]} 28... Rc2+ {[%clk 0:01:06.2]}
29. Kd3 {[%clk 0:03:16.6]} 29... Rc7 {[%clk 0:00:51.1]} 30. Bc5 {[%clk 0:03:10]}
30... Rd7+ {[%clk 0:00:35.7]} 31. Ke3 {[%clk 0:03:02.2]} 31... h6 {[%clk
0:00:24.9]} 32. Rxf8+ {[%clk 0:02:57.4]} 32... Kh7 {[%clk 0:00:24.1]} 33. g4
{[%clk 0:02:49.2]} 33... Nc1 {[%clk 0:00:22.9]} 34. g5 {[%clk 0:02:33.5]} 34...
Rd3+ {[%clk 0:00:19]} 35. Kf2 {[%clk 0:02:31.8]} 35... hxg5 {[%clk 0:00:14.7]}
36. Nxg5+ {[%clk 0:02:30.6]} 36... Kg6 {[%clk 0:00:13.8]} 37. Rxf7 {[%clk
0:02:25.2]} 37... Rd2+ {[%clk 0:00:12.4]} 38. Kg3 {[%clk 0:02:21.2]} 38... Rd3+
{[%clk 0:00:10.4]} 39. Kg4 {[%clk 0:02:19.9]} 39... Ne2 {[%clk 0:00:08.1]} 40.
Bf8 {[%clk 0:02:10.1]} 40... Rg3+ {[%clk 0:00:04.7]} 41. hxg3 {[%clk 0:02:07.7]}
41... Nxf4 {[%clk 0:00:02.4]} 42. gxf4 {[%clk 0:02:04.1]} 42... Kh6 {[%clk
0:00:01.4]} 43. Bxg7+ {[%clk 0:02:03.2]} 43... Kg6 {[%clk 0:00:00.7]} 44. Rf6+
{[%clk 0:02:02.8]} 1-0

[Event "Live Chess"]
[Site "Chess.com"]
[Date "2023.05.20"]
[Round "-"]
[White "domrobson"]
[Black "djw60"]
[Result "0-1"]
[WhiteElo "1749"]
[BlackElo "2107"]
[TimeControl "300"]
[EndTime "11:39:37 PDT"]
[Termination "djw60 won by resignation"]

1. d4 {[%clk 0:04:59.1]} 1... Nf6 {[%clk 0:04:55.6]} 2. c4 {[%clk 0:04:57.8]}
2... e6 {[%clk 0:04:54.2]} 3. Nf3 {[%clk 0:04:56.4]} 3... c5 {[%clk 0:04:52]} 4.
d5 {[%clk 0:04:54.9]} 4... d6 {[%clk 0:04:50.9]} 5. Nc3 {[%clk 0:04:53.5]} 5...
exd5 {[%clk 0:04:49.4]} 6. cxd5 {[%clk 0:04:51.8]} 6... a6 {[%clk 0:04:46.8]} 7.
a4 {[%clk 0:04:49.8]} 7... g6 {[%clk 0:04:45.5]} 8. e4 {[%clk 0:04:48.3]} 8...
Bg7 {[%clk 0:04:42.3]} 9. Be2 {[%clk 0:04:47.4]} 9... Bg4 {[%clk 0:04:40.9]} 10.
O-O {[%clk 0:04:45.3]} 10... Bxf3 {[%clk 0:04:39.5]} 11. Bxf3 {[%clk 0:04:44.2]}
11... Nbd7 {[%clk 0:04:37.4]} 12. Bf4 {[%clk 0:04:43.3]} 12... Qe7 {[%clk
0:04:34.7]} 13. Re1 {[%clk 0:04:40.8]} 13... Ne5 {[%clk 0:04:32.5]} 14. Qe2
{[%clk 0:04:32.2]} 14... O-O {[%clk 0:04:28.2]} 15. h3 {[%clk 0:04:28.6]} 15...
Rab8 {[%clk 0:04:19.7]} 16. Bh2 {[%clk 0:03:50.8]} 16... Nfd7 {[%clk 0:04:14]}
17. Rac1 {[%clk 0:03:44.9]} 17... Nxf3+ {[%clk 0:03:49.4]} 18. Qxf3 {[%clk
0:03:43.5]} 18... b5 {[%clk 0:03:49]} 19. axb5 {[%clk 0:03:41.5]} 19... axb5
{[%clk 0:03:48.1]} 20. Nd1 {[%clk 0:03:23.1]} 20... f5 {[%clk 0:03:31.7]} 21. b3
{[%clk 0:03:11.6]} 21... f4 {[%clk 0:03:20.8]} 22. Qe2 {[%clk 0:02:46.6]} 22...
f3 {[%clk 0:03:15.1]} 23. gxf3 {[%clk 0:02:42.6]} 23... Be5 {[%clk 0:03:13.7]}
24. Bg3 {[%clk 0:02:32.8]} 24... Qg5 {[%clk 0:03:06.8]} 25. Qe3 {[%clk
0:02:22.7]} 25... Bf4 {[%clk 0:03:04.3]} 0-1